fUST/lending_fUST_20260126
["ID","MTS","AMOUNT","RATE_DAILY","PERIOD"]
[403627783,1769430199989,-200.0,9.63e-05,2]
[403627784,1769430270989,-300.0,9.629e-05,2]
[403627785,1769430271008,-200.0,9.63e-05,2]
[403627786,1769430289355,-1000.0,9.63e-05,2]
[403627787,1769430290770,-1000.0,9.63e-05,2]
[403627788,1769430291892,-1000.0,9.63e-05,2]
[403627789,1769430292887,-1000.0,9.63e-05,2]
[403627790,1769430319782,-300.0,9.629e-05,2]
[403627791,1769430319803,-600.0,9.629e-05,2]
[403627792,1769430461391,599.97107672,0.00034708,120]
[403627793,1769430478147,152.1,6.639e-05,2]
[403627846,1769430636822,-119414.8855704,8.678e-05,2]
[403627848,1769430636832,-300.0,8.851e-05,2]
[403627850,1769430636842,-300.0,8.851e-05,2]
[403627852,1769430636851,-300.0,8.851e-05,2]
[403627854,1769430636860,-300.0,8.851e-05,2]
[403627856,1769430636869,-300.0,8.851e-05,2]
[403627858,1769430636878,-300.0,8.851e-05,2]
[403627860,1769430636887,-300.0,8.851e-05,2]
[403627861,1769430636896,-300.0,8.851e-05,2]
[403627863,1769430636905,-300.0,8.851e-05,2]
[403627866,1769430636915,-300.0,8.851e-05,2]
[403627867,1769430636928,-300.0,8.851e-05,2]
[403627869,1769430636948,-300.0,8.851e-05,2]
[403627871,1769430636957,-300.0,8.851e-05,2]
[403627873,1769430636966,-300.0,8.851e-05,2]
[403627875,1769430636975,-300.0,8.851e-05,2]
[403627877,1769430636984,-600.0,8.851e-05,2]
[403627879,1769430636994,-300.0,9.529e-05,2]
[403627881,1769430637003,-281.0,9.529e-05,2]
[403627883,1769430637012,-300.0,9.529e-05,2]
[403627885,1769430637021,-300.0,9.529e-05,2]
[403627887,1769430637029,-300.0,9.529e-05,2]
[403627889,1769430637038,-1200.0,9.529e-05,2]
[403627891,1769430637047,-16853.23581572,9.53e-05,2]
[403627894,1769430637058,-1435.27231834,9.53e-05,2]
[403627895,1769430637069,-5668.79204936,9.53e-05,2]
[403628005,1769430638363,-3782.32341741,9.53e-05,2]
[403628007,1769430638375,-937101.61233836,9.53e-05,2]
[403628009,1769430638385,-553.0,9.53e-05,2]
[403628011,1769430638394,-234.38664917,9.629e-05,2]
[403628013,1769430638403,-26582.20500483,9.63e-05,2]
[403628015,1769430638413,-126.33894478,9.63e-05,2]
[403628017,1769430638422,-500.0,9.63e-05,2]
[403628019,1769430638432,-500.0,9.63e-05,2]
[403628021,1769430638441,-441.54184704,9.63e-05,2]
[403628024,1769430638451,-500.0,9.63e-05,2]
[403628026,1769430638461,-236.15604203,9.63e-05,2]
[403628027,1769430638470,-228.37714345,9.63e-05,2]
[403628029,1769430638479,-500.0,9.63e-05,2]
[403628031,1769430638488,-500.0,9.63e-05,2]
[403628033,1769430638498,-500.0,9.63e-05,2]
[403628035,1769430638506,-500.0,9.63e-05,2]
[403628037,1769430638515,-461.63909443,9.63e-05,2]
[403628039,1769430638524,-500.0,9.63e-05,2]
[403628041,1769430638534,-500.0,9.63e-05,2]
[403628043,1769430638544,-500.0,9.63e-05,2]
[403628045,1769430638552,-720.0,9.736e-05,2]
[403628047,1769430638561,-256.55006662,9.823e-05,2]
[403628049,1769430638570,-628573.331,0.0001,2]
[403628051,1769430638580,-339.65547154,0.00010465,2]
[403628053,1769430638589,-420.0,0.00010482,2]
[403628055,1769430638598,-600.0,0.00010482,2]
[403628057,1769430638608,-864.0,0.00010709,2]
[403628059,1769430638618,-1766.92174569,0.00010805,2]
[403628061,1769430638627,-208.96,0.000113,2]
[403628063,1769430638636,-500.0,0.000113,2]
[403628065,1769430638645,-202.0,0.0001153,2]
[403628067,1769430638654,-678.5269253,0.00011542,2]
[403628069,1769430638663,-276.57624602,0.00011629,2]
[403628071,1769430638672,-1000.0,0.0001178,2]
[403628073,1769430638682,-25095.5087375,0.00012,5]
[403628075,1769430638691,-1000.0,0.00012958,2]
[403628077,1769430638700,-244.0,0.00012958,2]
[403628079,1769430638709,-150.0,0.00013136,2]
[403628081,1769430638718,-500.0,0.00013136,2]
[403628083,1769430638727,-293.44993338,0.00013136,2]
[403628085,1769430638736,-150.0,0.00013136,2]
[403628087,1769430638745,-150.0,0.00013136,2]
[403628089,1769430638753,-1041.66666667,0.0001327,2]
[403628091,1769430638762,-503.5144957,0.00013273,2]
[403628093,1769430638772,-162.48916646,0.00013273,2]
[403628095,1769430638781,-502.99035624,0.00013273,2]
[403628097,1769430638790,-574.57055337,0.00013273,2]
[403628099,1769430638799,-500.0,0.00013273,2]
[403628101,1769430638808,-500.0,0.00013273,2]
[403628103,1769430638817,-504.66008898,0.00013273,2]
[403628105,1769430638826,-500.0,0.00013273,2]
[403628107,1769430638835,-386.99327385,0.00013273,2]
[403628109,1769430638844,-500.0,0.00013273,2]
[403628111,1769430638852,-500.0,0.00013273,2]
[403628113,1769430638862,-501.2459449,0.00013273,2]
[403628115,1769430638871,-500.0,0.00013273,2]
[403628117,1769430638881,-500.92401321,0.00013273,2]
[403628119,1769430638890,-500.0,0.00013273,2]
[403628121,1769430638899,-500.0,0.00013273,2]
[403628123,1769430638909,-501.2138829,0.00013273,2]
[403628125,1769430638918,-502.4998524,0.00013273,2]
[403628127,1769430638930,-500.0,0.00013273,2]
[403628129,1769430638940,-150.0,0.00013273,2]
[403628131,1769430638949,-500.0,0.00013273,2]
[403628133,1769430638959,-150.0,0.00013273,2]
[403628135,1769430638971,-200.0,0.0001341,2]
[403628137,1769430638980,-500.0,0.0001341,2]
[403628139,1769430638989,-200.41971322,0.0001341,2]
[403628141,1769430638999,-500.0,0.00013547,2]
[403628143,1769430639008,-150.0,0.00013547,2]
[403628145,1769430639017,-150.0,0.00013547,2]
[403628147,1769430639026,-318.76584287,0.00013629,2]
[403628148,1769430639034,-8694.24635286,0.00013641,2]
[403628150,1769430639044,-300.0,0.00013673,2]
[403628152,1769430639055,-500.0,0.00013684,2]
[403628155,1769430639065,-250.0,0.00013684,2]
[403628156,1769430639074,-250.0,0.00013684,2]
[403628159,1769430639083,-154.20486829,0.00013698,2]
[403628160,1769430639093,-626.122152,0.00013698,2]
[403628163,1769430639102,-159.67387,0.00013699,2]
[403628164,1769430639111,-228.02056982,0.00013699,2]
[403628166,1769430639121,-300.01916849,0.00013699,2]
[403628169,1769430639130,-500.0,0.00013699,2]
[403628171,1769430639140,-2000.0,0.00013699,7]
[403628172,1769430639149,-500.0,0.00013699,2]
[403628174,1769430639159,-171.30774651,0.00013699,2]
[403628176,1769430639168,-1209.28679556,0.00013699,2]
[403628178,1769430639177,-1889.51061805,0.00013699,2]
[403628181,1769430639186,-2718.17439471,0.00013699,2]
[403628182,1769430639196,-3637.50660809,0.00013704,2]
[403628184,1769430639205,-4946.09961034,0.00013704,2]
[403628187,1769430639215,-523.55584983,0.00013704,2]
[403628189,1769430639224,-942.4005297,0.00013704,2]
[403628190,1769430639234,-1675.37871946,0.00013704,2]
[403628192,1769430639243,-2617.77924916,0.00013704,2]
[403628194,1769430639252,-3765.83251667,0.00013704,2]
[403628196,1769430639261,-500.0,0.00013743,2]
[403628198,1769430639270,-1000.0,0.00013821,2]
[403628200,1769430639279,-1000.0,0.00013821,2]
[403628202,1769430639289,-1000.0,0.00013821,2]
[403628204,1769430639298,-1000.0,0.00013821,2]
[403628206,1769430639307,-1000.0,0.00013821,2]
[403628208,1769430639316,-435.0,0.00013821,2]
[403628210,1769430639325,-100000.0,0.0001399,2]
[403628212,1769430639335,-38000.0,0.0001399,3]
[403628214,1769430639344,-38000.0,0.00013999,3]
[403628216,1769430639354,-2467.5559991,0.00013999,3]
[403628218,1769430639364,-1368.0,0.00014106,2]
[403628220,1769430639374,-629.0,0.00014106,2]
[403628222,1769430639383,-2150.0,0.00014106,2]
[403628225,1769430639393,-593.935,0.00014106,2]
[403628226,1769430639402,-179.901,0.00014106,2]
[403628228,1769430639411,-418.0,0.00014106,2]
[403628230,1769430639421,-600.0,0.00014221,2]
[403628233,1769430639430,-1000.0,0.00014247,2]
[403628234,1769430639440,-1000.0,0.00014247,2]
[403628237,1769430639450,-300.0,0.00014247,3]
[403628238,1769430639460,-1000.0,0.00014254,2]
[403628241,1769430639469,-153.6801633,0.00014287,2]
[403628242,1769430639478,-1500.0,0.00014368,2]
[403628245,1769430639488,-1500.0,0.00014368,2]
[403628247,1769430639497,-1500.0,0.00014368,2]
[403628249,1769430639506,-943.77363094,0.00014368,2]
[403628251,1769430639515,-1500.0,0.00014368,2]
[403628269,1769430639677,-168.0,0.00014401,2]
[403628272,1769430639698,-168.0,0.00014455,2]
[403628274,1769430639708,-168.0,0.00014474,2]
[403628276,1769430639718,-168.0,0.00014512,2]
[403628278,1769430639726,-168.0,0.00014545,2]
[403628280,1769430639735,-164.34495881,0.000147,2]
[403628283,1769430639745,-179.9640072,0.00014716,2]
[403628285,1769430639754,-2000.0,0.00014749,7]
[403628287,1769430639763,-206.375,0.00014768,2]
[403628289,1769430639773,-900.0,0.00014768,2]
[403628291,1769430639782,-168.0,0.00014792,2]
[403628293,1769430639791,-1461.62464944,0.00014795,2]
[403628296,1769430639799,-1500.0,0.00014795,2]
[403628298,1769430639809,-168.0,0.00014895,2]
[403628300,1769430639818,-595.81313505,0.000149,2]
[403628302,1769430639827,-2000.0,0.00014916,2]
[403628304,1769430639837,-2000.0,0.00014916,2]
[403628306,1769430639846,-2000.0,0.00014916,2]
[403628308,1769430639856,-2000.0,0.00014916,2]
[403628310,1769430639865,-168.0,0.00014951,2]
[403628312,1769430639874,-218155.15896797,0.00015,2]
[403628314,1769430639883,-1020.44694379,0.00015,2]
[403628316,1769430639892,-580.47140307,0.00015,2]
[403628318,1769430639901,-78769.91693024,0.00015,2]
[403628320,1769430639910,-24385.87077918,0.00015,2]
[403628322,1769430639919,-151.21168241,0.00015,2]
[403628324,1769430639933,-168.0,0.00015065,2]
[403628326,1769430639942,-1099.536109,0.00015068,2]
[403628328,1769430639951,-168.0,0.00015091,2]
[403628330,1769430639960,-168.0,0.00015097,2]
[403628332,1769430639970,-168.0,0.00015134,2]
[403628334,1769430639980,-374.746635,0.00015135,7]
[403628336,1769430639990,-242.0,0.00015178,3]
[403628338,1769430640000,-168.0,0.00015231,2]
[403628340,1769430640009,-160.605701,0.00015242,7]
[403628342,1769430640018,-168.0,0.00015308,2]
[403628344,1769430640027,-1293.63223956,0.00015316,2]
[403628346,1769430640036,-2000.0,0.00015342,2]
[403628348,1769430640046,-236.34,0.0001536,30]
[403628350,1769430640055,-155.078,0.00015399,2]
[403628352,1769430640064,-605.20086783,0.000154,2]
[403628353,1769430640074,-205.29,0.000154,10]
[403628355,1769430640083,-702164.84738325,0.000154,2]
[403628357,1769430640092,-500.0,0.000154,2]
[403628359,1769430640102,-218.53,0.000154,7]
[403628361,1769430640111,-105099.66781429,0.000154,2]
[403628376,1769430640241,-263.02871244,0.000154,2]
[403628379,1769430640252,-790.73114162,0.000154,2]
[403628444,1769430640854,-105.01780954,0.00014254,2]
[403628709,1769430644849,-621.0,0.0001314,2]
[403628755,1769430657465,500.0,0.00034708,120]
[403628756,1769430689810,504.41012421,0.00034708,120]
[403628757,1769430699772,523.49238853,0.00034708,120]
[403628758,1769430710695,503.09355926,0.00034708,120]
[403628759,1769430723809,503.93180634,0.00034708,120]
[403628760,1769430730935,534.27099204,0.00034708,120]
[403628761,1769430735867,503.16293555,0.00034708,120]
[403628762,1769430745495,507.55071681,0.00034708,120]
[403628764,1769430764147,501.31499524,0.00034708,120]
[403628765,1769430766041,193.31736326,0.00034708,120]
[403628766,1769430772915,537.24397565,0.00034708,120]
[403628767,1769430779143,348.64632389,0.00034708,120]
[403628768,1769431017809,501.78511991,0.00034586,120]
[403628769,1769431019964,501.90111151,0.00034586,120]
[403628770,1769431028279,507.41310769,0.00034586,120]
[403628771,1769431037086,502.57166466,0.00034586,120]
[403628772,1769431068091,502.40319978,0.00034586,120]
[403628773,1769431069800,500.0,0.00034586,120]
[403628774,1769431072241,501.64231587,0.00034586,120]
[403628775,1769431079396,502.07138535,0.00034586,120]
[403628776,1769431085970,502.05908065,0.00034586,120]
[403628777,1769431087960,500.0,0.00034586,120]
[403628778,1769431091255,501.92940569,0.00034586,120]
[403628779,1769431105337,502.26487567,0.00034586,120]
[403628780,1769431107129,502.40718336,0.00034586,120]
[403628781,1769431112528,501.64823757,0.00034586,120]
[403628782,1769431121149,502.54989842,0.00034742,120]
[403628783,1769431148161,500.0,0.00034742,120]
[403628784,1769431174869,501.5731236,0.00034742,120]
[403628785,1769431199840,501.81812368,0.00034742,120]
[403628786,1769431202488,502.20509008,0.00034742,120]
[403628788,1769431600141,-500.0,8.671e-05,2]
[403628789,1769431600161,-500.0,8.671e-05,2]
[403628790,1769431600185,-500.0,8.671e-05,2]
[403628791,1769431600215,-500.0,8.671e-05,2]
[403628792,1769431600237,-500.0,8.671e-05,2]
[403628793,1769431600260,-500.0,8.671e-05,2]
[403628794,1769431600284,-500.0,8.671e-05,2]
[403628795,1769431600304,-300.96224095,8.671e-05,2]
[403628796,1769431600324,-500.0,8.671e-05,2]
[403628797,1769431600346,-256.35506896,8.671e-05,2]
[403628798,1769431600369,-500.0,8.671e-05,2]
[403628799,1769431600392,-500.0,8.671e-05,2]
[403628800,1769431600414,-500.0,8.671e-05,2]
[403628801,1769431600436,-500.0,8.671e-05,2]
[403628802,1769431600457,-500.0,8.671e-05,2]
[403628803,1769431600477,-500.0,8.671e-05,2]
[403628804,1769431600498,-500.0,8.671e-05,2]
[403628805,1769431600528,-500.0,8.671e-05,2]
[403628806,1769431600552,-500.0,8.671e-05,2]
[403628807,1769431600573,-487.37583393,8.671e-05,2]
[403628808,1769431600595,-500.0,8.671e-05,2]
[403628809,1769431600616,-500.0,8.671e-05,2]
[403628810,1769431600638,-500.0,8.671e-05,2]
[403628811,1769431600661,-500.0,8.671e-05,2]
[403628812,1769431600680,-500.0,8.671e-05,2]
[403628813,1769431600702,-500.0,8.671e-05,2]
[403628814,1769431600724,-500.0,8.671e-05,2]
[403628815,1769431600744,-500.0,8.671e-05,2]
[403628816,1769431600766,-500.0,8.671e-05,2]
[403628817,1769431600786,-500.0,8.671e-05,2]
[403628818,1769431600807,-577.61970551,8.671e-05,2]
[403628819,1769431600828,-201.20137928,8.671e-05,2]
[403628820,1769431600849,-500.0,8.671e-05,2]
[403628821,1769431600869,-135.79318237,8.671e-05,2]
[403628863,1769431837671,-299.9320696,8.497e-05,2]
[403628901,1769431838406,-572.71456598,8.497e-05,2]
[403628907,1769431838463,-126.65336442,8.497e-05,2]
[403628908,1769431838471,-600.0,8.582e-05,2]
[403628910,1769431838481,-3691.51532554,8.583e-05,2]
[403628912,1769431838491,-540.0,8.583e-05,2]
[403628914,1769431838500,-500.0,8.669e-05,2]
[403628916,1769431838510,-500.0,8.669e-05,2]
[403628918,1769431838519,-500.0,8.669e-05,2]
[403628919,1769431838528,-500.0,8.669e-05,2]
[403628921,1769431838538,-500.0,8.669e-05,2]
[403628923,1769431838548,-500.0,8.669e-05,2]
[403628925,1769431838557,-500.0,8.669e-05,2]
[403628927,1769431838567,-503.42164277,8.669e-05,2]
[403628928,1769431838576,-500.0,8.669e-05,2]
[403628930,1769431838586,-500.0,8.669e-05,2]
[403628932,1769431838595,-500.0,8.669e-05,2]
[403628934,1769431838605,-500.0,8.669e-05,2]
[403628936,1769431838614,-500.0,8.669e-05,2]
[403628938,1769431838624,-500.0,8.669e-05,2]
[403628939,1769431838633,-230.84663395,8.669e-05,2]
[403628941,1769431838643,-500.0,8.669e-05,2]
[403628943,1769431838652,-500.0,8.669e-05,2]
[403628945,1769431838661,-500.0,8.669e-05,2]
[403628947,1769431838670,-500.0,8.669e-05,2]
[403628949,1769431838679,-500.0,8.669e-05,2]
[403628950,1769431838689,-500.0,8.669e-05,2]
[403628952,1769431838698,-500.0,8.669e-05,2]
[403628954,1769431838707,-500.0,8.669e-05,2]
[403628956,1769431838715,-500.0,8.669e-05,2]
[403628958,1769431838724,-500.0,8.669e-05,2]
[403628959,1769431838734,-500.0,8.669e-05,2]
[403628961,1769431838743,-500.0,8.669e-05,2]
[403628963,1769431838752,-500.0,8.669e-05,2]
[403628965,1769431838760,-500.0,8.669e-05,2]
[403628966,1769431838770,-500.0,8.669e-05,2]
[403628967,1769431838778,-500.0,8.669e-05,2]
[403628968,1769431838787,-500.0,8.669e-05,2]
[403628969,1769431838799,-500.0,8.669e-05,2]
[403628970,1769431838809,-500.0,8.669e-05,2]
[403628971,1769431838818,-500.0,8.669e-05,2]
[403628972,1769431838827,-500.0,8.669e-05,2]
[403628973,1769431838836,-500.0,8.669e-05,2]
[403628974,1769431838845,-500.0,8.669e-05,2]
[403628975,1769431838855,-500.0,8.669e-05,2]
[403628976,1769431838864,-500.0,8.669e-05,2]
[403628977,1769431838874,-176.93206793,8.669e-05,2]
[403628978,1769431838883,-500.0,8.669e-05,2]
[403628979,1769431838892,-500.0,8.669e-05,2]
[403628980,1769431838902,-500.0,8.669e-05,2]
[403628981,1769431838911,-500.0,8.669e-05,2]
[403628982,1769431838920,-500.0,8.669e-05,2]
[403628983,1769431838930,-500.0,8.669e-05,2]
[403628984,1769431838939,-500.0,8.669e-05,2]
[403628985,1769431838948,-500.0,8.669e-05,2]
[403628986,1769431838957,-500.0,8.669e-05,2]
[403628987,1769431838967,-500.0,8.669e-05,2]
[403628988,1769431838976,-500.0,8.669e-05,2]
[403628989,1769431838985,-500.0,8.669e-05,2]
[403628990,1769431838995,-500.0,8.669e-05,2]
[403628991,1769431839004,-500.0,8.669e-05,2]
[403628992,1769431839013,-500.0,8.669e-05,2]
[403628993,1769431839023,-350.0,8.669e-05,2]
[403628994,1769431839032,-500.0,8.669e-05,2]
[403628995,1769431839041,-500.0,8.669e-05,2]
[403628996,1769431839050,-500.0,8.669e-05,2]
[403628997,1769431839060,-500.0,8.669e-05,2]
[403628998,1769431839069,-500.0,8.669e-05,2]
[403628999,1769431839078,-500.0,8.669e-05,2]
[403629000,1769431839087,-500.0,8.669e-05,2]
[403629001,1769431839096,-500.0,8.669e-05,2]
[403629002,1769431839105,-500.0,8.669e-05,2]
[403629003,1769431839114,-500.0,8.669e-05,2]
[403629004,1769431839123,-500.0,8.669e-05,2]
[403629005,1769431839132,-500.0,8.669e-05,2]
[403629006,1769431839141,-500.0,8.669e-05,2]
[403629007,1769431839151,-500.0,8.669e-05,2]
[403629008,1769431839160,-500.0,8.669e-05,2]
[403629009,1769431839170,-500.0,8.669e-05,2]
[403629010,1769431839179,-409.14251341,8.669e-05,2]
[403629011,1769431839188,-500.0,8.669e-05,2]
[403629012,1769431839197,-500.0,8.669e-05,2]
[403629013,1769431839206,-500.0,8.669e-05,2]
[403629014,1769431839215,-500.0,8.669e-05,2]
[403629015,1769431839224,-500.0,8.669e-05,2]
[403629016,1769431839233,-500.0,8.669e-05,2]
[403629017,1769431839242,-500.0,8.669e-05,2]
[403629018,1769431839430,-500.0,8.669e-05,2]
[403629019,1769431839452,-500.0,8.669e-05,2]
[403629020,1769431839462,-500.0,8.669e-05,2]
[403629021,1769431839471,-500.0,8.669e-05,2]
[403629022,1769431839480,-500.0,8.669e-05,2]
[403629023,1769431839489,-500.0,8.669e-05,2]
[403629024,1769431839498,-500.0,8.669e-05,2]
[403629025,1769431839507,-500.0,8.669e-05,2]
[403629026,1769431839516,-500.0,8.669e-05,2]
[403629027,1769431839524,-500.0,8.669e-05,2]
[403629028,1769431839533,-155.078,8.669e-05,2]
[403629029,1769431839543,-300.0,8.669e-05,2]
[403629030,1769431839551,-50000.0,8.67e-05,2]
[403629031,1769431839560,-268.65520167,8.67e-05,2]
[403629032,1769431839568,-300.13332744,8.674e-05,2]
[403629033,1769431839577,-437.95196661,8.676e-05,2]
[403629034,1769431839585,-500.0,8.677e-05,2]
[403629035,1769431839594,-300.0,8.85e-05,2]
[403629036,1769431839603,-300.0,8.85e-05,2]
[403629037,1769431839612,-300.0,8.85e-05,2]
[403629038,1769431839621,-300.0,8.85e-05,2]
[403629039,1769431839629,-300.0,8.85e-05,2]
[403629040,1769431839638,-300.0,8.85e-05,2]
[403629041,1769431839647,-300.0,8.85e-05,2]
[403629042,1769431839655,-300.0,8.85e-05,2]
[403629043,1769431839664,-300.0,8.85e-05,2]
[403629044,1769431839673,-300.0,8.85e-05,2]
[403629045,1769431839682,-300.0,8.85e-05,2]
[403629046,1769431839691,-300.0,8.85e-05,2]
[403629047,1769431839700,-300.0,8.85e-05,2]
[403629048,1769431839708,-300.0,8.85e-05,2]
[403629049,1769431839717,-300.0,8.85e-05,2]
[403629050,1769431839726,-600.0,8.85e-05,2]
[403629051,1769431839735,-300.13332742,8.89e-05,2]
[403629052,1769431839743,-300.13332742,9.106e-05,2]
[403629053,1769431839752,-300.13332742,9.322e-05,2]
[403629054,1769431839761,-420.0,9.536e-05,2]
[403629055,1769431839770,-300.13332742,9.538e-05,2]
[403629056,1769431839779,-720.0,9.735e-05,2]
[403629057,1769431839787,-587.0,0.00010489,2]
[403629058,1769431839796,-317.01313798,0.0001067,2]
[403629059,1769431839805,-864.0,0.00010708,2]
[403629060,1769431839813,-823.0,0.00011538,2]
[403629061,1769431839823,-339.65547154,0.00011591,2]
[403629062,1769431839832,-1000.0,0.00011779,2]
[403629063,1769431839841,-630.79,0.000124,2]
[403629064,1769431839850,-300.0,0.00012591,2]
[403629065,1769431839859,-365.37107428,0.0001267,2]
[403629066,1769431839868,-1000.0,0.00012957,2]
[403629067,1769431839877,-244.0,0.00012957,2]
[403629068,1769431839885,-1041.66666667,0.00013023,2]
[403629069,1769431839894,-500.0,0.00013136,2]
[403629070,1769431839903,-155.66336086,0.00013136,2]
[403629071,1769431839911,-150.0,0.00013136,2]
[403629073,1769431839920,-293.44993338,0.00013136,2]
[403629074,1769431839929,-150.0,0.00013136,2]
[403629075,1769431839938,-150.0,0.00013136,2]
[403629076,1769431839947,-162.48916646,0.00013273,2]
[403629077,1769431839956,-574.57055337,0.00013273,2]
[403629078,1769431839965,-503.5144957,0.00013273,2]
[403629080,1769431839975,-502.99035624,0.00013273,2]
[403629081,1769431839984,-500.0,0.00013273,2]
[403629083,1769431839993,-500.0,0.00013273,2]
[403629085,1769431840002,-500.0,0.00013273,2]
[403629086,1769431840011,-386.99327385,0.00013273,2]
[403629088,1769431840020,-500.0,0.00013273,2]
[403629090,1769431840030,-500.0,0.00013273,2]
[403629092,1769431840039,-504.66008898,0.00013273,2]
[403629093,1769431840048,-500.0,0.00013273,2]
[403629095,1769431840057,-501.2459449,0.00013273,2]
[403629097,1769431840067,-500.92401321,0.00013273,2]
[403629099,1769431840076,-500.0,0.00013273,2]
[403629100,1769431840086,-500.0,0.00013273,2]
[403629101,1769431840095,-502.4998524,0.00013273,2]
[403629102,1769431840105,-501.2138829,0.00013273,2]
[403629104,1769431840114,-500.0,0.00013273,2]
[403629106,1769431840124,-500.0,0.00013273,2]
[403629108,1769431840133,-150.0,0.00013273,2]
[403629110,1769431840143,-150.0,0.00013273,2]
[403629112,1769431840152,-500.0,0.0001341,2]
[403629115,1769431840161,-200.0,0.0001341,2]
[403629118,1769431840170,-200.41971322,0.0001341,2]
[403629121,1769431840180,-500.0,0.00013547,2]
[403629123,1769431840189,-300.0,0.00013673,2]
[403629125,1769431840198,-500.0,0.00013684,2]
[403629127,1769431840207,-626.122152,0.00013698,2]
[403629129,1769431840217,-154.20486829,0.00013698,2]
[403629131,1769431840227,-1000.0,0.00013699,2]
[403629133,1769431840236,-228.02056982,0.00013699,2]
[403629135,1769431840245,-300.01916849,0.00013699,2]
[403629137,1769431840254,-500.0,0.00013699,2]
[403629139,1769431840263,-500.0,0.00013699,2]
[403629141,1769431840273,-171.30774651,0.00013699,2]
[403629143,1769431840281,-1000.0,0.00013821,2]
[403629145,1769431840291,-1000.0,0.00013821,2]
[403629146,1769431840300,-1000.0,0.00013821,2]
[403629147,1769431840310,-1000.0,0.00013821,2]
[403629148,1769431840319,-1000.0,0.00013821,2]
[403629150,1769431840328,-500.0,0.00013821,2]
[403629152,1769431840337,-500.0,0.00013958,2]
[403629154,1769431840346,-38000.0,0.00013991,3]
[403629156,1769431840355,-38000.0,0.00014,3]
[403629158,1769431840364,-2467.5559991,0.00014,3]
[403629160,1769431840372,-500.0,0.00014095,2]
[403629162,1769431840381,-500.0,0.00014122,2]
[403629164,1769431840390,-600.0,0.00014221,2]
[403629166,1769431840399,-500.0,0.00014232,2]
[403629168,1769431840408,-1000.0,0.00014247,2]
[403629170,1769431840417,-1000.0,0.00014247,2]
[403629172,1769431840426,-1000.0,0.00014252,2]
[403629174,1769431840440,-492.0,0.00014252,2]
[403629176,1769431840452,-629.0,0.00014306,2]
[403629178,1769431840462,-2150.0,0.00014306,2]
[403629180,1769431840471,-1368.0,0.00014306,2]
[403629182,1769431840480,-150.0,0.00014306,2]
[403629184,1769431840489,-168.0,0.00014316,2]
[403629186,1769431840498,-1500.0,0.00014368,2]
[403629188,1769431840509,-1500.0,0.00014368,2]
[403629190,1769431840518,-1500.0,0.00014368,2]
[403629192,1769431840528,-943.77363094,0.00014368,2]
[403629194,1769431840538,-1500.0,0.00014368,2]
[403629196,1769431840548,-196.0,0.00014369,2]
[403629198,1769431840557,-168.0,0.0001446,2]
[403629200,1769431840566,-168.0,0.00014493,2]
[403629202,1769431840575,-319.64847875,0.00014535,2]
[403629204,1769431840586,-575.36726175,0.00014535,2]
[403629206,1769431840596,-1022.875132,0.00014535,2]
[403629208,1769431840606,-1598.24239375,0.00014535,2]
[403629210,1769431840615,-2299.16757795,0.00014535,2]
[403629212,1769431840624,-403.52314685,0.00014535,2]
[403629214,1769431840634,-629.87441204,0.00014535,2]
[403629216,1769431840644,-168.0,0.00014627,2]
[403629218,1769431840653,-168.0,0.00014663,2]
[403629220,1769431840662,-413.72901058,0.0001467,2]
[403629222,1769431840671,-157.54217856,0.00014729,2]
[403629224,1769431840681,-283.57592141,0.00014729,2]
[403629225,1769431840690,-332.31512527,0.00014729,2]